bitfinex-derivatives/quotes_BNBF0:USTF0_20250603
["timestamp","ask_amount","ask_price","bid_price","bid_amount"]
[1748950393424,2.28452487,665.43,664.77,0.97557731]
[1748950394020,2.28452487,665.43,664.76,0.97557731]
[1748950394419,1.11752487,665.42,664.76,0.97557731]
[1748950394625,1.11752487,665.42,664.77,0.97557731]
[1748950394826,1.167,665.43,664.77,0.97557731]
[1748950395129,1.11889928,665.4,664.78,1.27789742]
[1748950395320,0.89526623,665.39,665.13,0.97557731]
[1748950395523,1.134,665.39,665.13,0.97557731]
[1748950395926,1.134,665.39,665.24,0.97557731]
[1748950396728,1.134,665.39,665.29,0.97557731]
[1748950397128,1.134,665.39,665.3,0.97557731]
[1748950397525,1.134,665.39,665.31,0.97557731]
[1748950398230,1.134,665.39,665.32,0.97557731]
[1748950398431,1.134,665.39,665.33,1.27790634]
[1748950398724,1.134,665.39,665.34,1.27790634]
[1748950398929,1.134,665.39,665.35,1.27790634]
[1748950399129,1.134,665.39,665.36,1.27790634]
[1748950399330,1.134,665.39,665.24,0.97692291]
[1748950400530,1.134,665.39,665.25,0.97692291]
[1748950400531,0.99422919,665.39,665.25,0.97692291]
[1748950400923,1.167,665.43,665.25,0.97692291]
[1748950401333,1.167,665.43,665.29,0.97692291]
[1748950402628,1.167,665.43,665.31,0.97692291]
[1748950403229,1.167,665.43,665.33,0.97692291]
[1748950404331,1.167,665.43,665.35,0.97692291]
[1748950404730,1.167,665.43,665.37,0.97692291]
[1748950406332,1.167,665.43,665.38,0.97692291]
[1748950408232,1.167,665.43,665.39,0.97692291]
[1748950408832,1.167,665.43,665.4,0.97692291]
[1748950409134,1.167,665.43,665.41,1.27790634]
[1748950409330,1.167,665.43,664.81,1.49398753]
[1748950409331,1.167,665.43,665.42,1.27790634]
[1748950410535,0.26163446,665.44,665.42,1.27790634]
[1748950410729,0.26163446,665.44,665.43,1.27790634]
[1748950411135,0.26163446,665.44,665.37,0.97828968]
[1748950411534,0.26163446,665.44,665.39,0.97828968]
[1748950412836,0.26163446,665.44,665.33,0.97828968]
[1748950413135,0.26163446,665.44,665.4,0.97828968]
[1748950413937,0.26163446,665.44,665.35,0.97828968]
[1748950414339,0.26163446,665.44,665.34,0.97828968]
[1748950414638,0.26163446,665.44,665.29,0.97828968]
[1748950415238,0.26163446,665.44,665.28,0.97828968]
[1748950415641,0.26163446,665.44,665.27,0.97828968]
[1748950417040,0.26163446,665.44,665.26,0.97828968]
[1748950418945,0.26163446,665.44,665.39,0.97828968]
[1748950419748,0.26163446,665.44,665.4,0.95842762]
[1748950419948,0.26163446,665.44,665.41,0.95842762]
[1748950420149,0.26163446,665.44,665.42,0.95842762]
[1748950420349,0.26163446,665.44,665.43,0.95842762]
[1748950420547,0.12186316,665.44,665.43,0.95842762]
[1748950420745,1.49233423,665.48,665.43,0.95842762]
[1748950420944,1.49233423,665.47,665.44,2.23633512]
[1748950421150,1.49233423,665.48,665.45,0.95842762]
[1748950421351,1.131,665.54,665.4,0.97828968]
[1748950421652,1.131,665.54,665.13,0.978323]
[1748950421852,1.131,665.54,665.14,0.95833216]
[1748950422047,1.131,665.54,665.15,0.95833216]
[1748950422248,1.131,665.54,665.16,0.95833216]
[1748950422452,1.131,665.54,665.17,0.95833216]
[1748950422652,1.131,665.54,665.18,0.95833216]
[1748950422947,1.131,665.54,665.19,0.95833216]
[1748950423152,1.131,665.54,665.2,0.95833216]
[1748950423350,1.131,665.54,665.21,0.95833216]
[1748950423550,1.131,665.54,665.22,0.95833216]
[1748950423752,0.26160693,665.46,665.23,1.59716652]
[1748950424058,0.26160693,665.46,665.4,0.97699464]
[1748950424354,0.921,665.45,665.44,0.97699464]
[1748950424553,0.921,665.45,665.44,2.57416116]
[1748950425254,0.69741135,665.45,665.44,2.57416116]
[1748950426055,0.69741135,665.45,665.44,1.59716652]
[1748950426950,0.69741135,665.45,665.44,2.87506243]
[1748950427150,0.69741135,665.45,665.44,1.59716652]
[1748950429157,0.69741135,665.45,665.44,0.63883436]
[1748950430760,0.69741135,665.45,665.44,1.59697346]
[1748950431859,0.69741135,665.45,665.44,2.57132061]
[1748950432058,0.69741135,665.45,665.44,1.59697346]
[1748950440560,0.55770679,665.45,665.44,1.59697346]
[1748950440760,0.55770679,665.45,665.44,2.87449677]
[1748950446166,0.55770679,665.45,665.44,1.59697346]
[1748950453468,0.55770679,665.45,665.44,2.56878147]
[1748950453872,0.55770679,665.45,665.44,1.59697346]
[1748950455473,0.33422486,665.45,665.44,1.59697346]
[1748950460674,0.19454661,665.45,665.44,0.63883436]
[1748950462783,0.19454661,665.45,665.44,1.59697346]
[1748950480799,0.05483972,665.45,665.44,1.59697346]
[1748950481603,0.05483972,665.45,665.44,0.63883436]
[1748950484200,1.09,665.58,665.44,0.63883436]
[1748950484503,1.09,665.58,665.45,0.63883436]
[1748950484704,0.851,665.6,665.46,0.63883436]
[1748950484903,0.851,665.6,665.47,0.63883436]
[1748950485104,0.851,665.6,665.48,0.63883436]
[1748950485303,0.6274532,665.6,665.49,0.63883436]
[1748950485504,0.26152829,665.65,665.5,0.63883436]
[1748950485706,0.26152829,665.65,665.6,0.57283308]
[1748950485899,0.26152829,665.65,665.61,0.63883436]
[1748950486102,0.26152829,665.65,665.62,0.63883436]
[1748950486301,0.26152829,665.65,665.63,0.63883436]
[1748950486504,0.26152829,665.65,665.64,0.63883436]
[1748950494715,0.26152829,665.65,665.64,1.2118266]
[1748950495709,0.26152829,665.65,665.64,0.63883436]
[1748950495912,0.26152829,665.65,665.64,1.21268162]
[1748950496112,0.26152829,665.65,665.64,0.63883436]
[1748950505924,1.37881465,665.65,665.64,0.63883436]
[1748950506224,0.26152829,665.65,665.64,0.63883436]
[1748950506523,1.37881465,665.65,665.64,0.63883436]
[1748950507120,0.26152829,665.65,665.64,0.63883436]
[1748950507717,1.37881465,665.65,665.64,0.63883436]
[1748950508125,0.26152829,665.65,665.64,0.63883436]
[1748950512523,0.12179813,665.65,665.64,0.63883436]
[1748950512921,1.11671802,665.73,665.64,0.63883436]
[1748950513128,1.11671802,665.74,665.65,0.63883436]
[1748950513429,1.11671802,665.74,665.66,0.63883436]
[1748950513627,1.11671802,665.74,665.67,0.63883436]
[1748950513829,1.11671802,665.74,665.68,0.63883436]
[1748950514127,2.30433423,665.91,665.69,0.63883436]
[1748950514327,1.11729783,665.74,665.7,0.63883436]
[1748950514526,1.11729783,665.74,665.71,0.63883436]
[1748950514727,1.11729783,665.73,665.72,0.63883436]
[1748950515225,1.11747523,665.73,665.72,0.63883436]
[1748950515430,1.49233423,665.88,665.72,0.63883436]
[1748950515632,1.49233423,665.88,665.73,0.63883436]
[1748950515827,0.26150176,665.85,665.74,0.63883436]
[1748950516025,0.26150176,665.85,664.79,1.49398753]
[1748950516026,0.26150176,665.85,665.75,0.63883436]
[1748950516226,0.26150176,665.85,665.76,0.63883436]
[1748950516530,0.26150176,665.85,665.77,0.63883436]
[1748950516830,1.75383599,665.85,665.78,0.63883436]
[1748950517130,1.49233423,665.84,665.79,0.63883436]
[1748950517331,1.49233423,665.84,665.8,0.63883436]
[1748950517524,1.49233423,665.84,665.41,0.97430921]
[1748950517525,1.49233423,665.84,665.81,0.63883436]
[1748950517730,1.49233423,665.83,665.82,0.63883436]
[1748950518232,1.49233423,665.84,665.82,0.63883436]
[1748950518532,1.49233423,665.84,665.83,0.63883436]
[1748950518731,0.26150176,665.85,665.83,0.63883436]
[1748950518926,0.26150176,665.85,665.84,0.63883436]
[1748950532239,0.26150176,665.85,665.84,1.59708548]
[1748950532643,0.12175682,665.85,665.84,1.59708548]
[1748950533047,1.28,665.92,665.84,1.59708548]
[1748950533248,1.28,665.92,665.85,0.65760198]
[1748950533543,1.28,665.92,665.86,0.63883436]
[1748950533743,1.28,665.92,665.87,0.63883436]
[1748950533947,1.28,665.92,665.88,0.63883436]
[1748950534148,1.28,665.92,665.37,0.97437788]
[1748950534448,1.49149055,665.66,665.37,0.97437788]
[1748950534846,1.49149055,665.67,665.37,0.97437788]
[1748950535245,1.49149055,665.67,665.38,0.97437788]
[1748950535744,1.49149055,665.66,665.37,0.97437788]
[1748950535944,0.26157743,665.6,665.37,0.97437788]
[1748950536848,0.26157743,665.6,665.35,0.97437788]
[1748950537247,0.26157743,665.6,665.55,0.97437788]
[1748950538150,0.26157743,665.6,665.05,0.97180801]
[1748950538350,0.26157743,665.6,665.14,0.97180801]
[1748950539652,0.26157743,665.6,665.15,0.97180801]
[1748950540045,0.26157743,665.6,665.14,0.97180801]
[1748950540250,0.26157743,665.6,665.19,0.97180801]
[1748950540549,0.26157743,665.6,665.2,0.97180801]
[1748950540950,0.26157743,665.6,665.16,0.97180801]
[1748950541348,0.26157743,665.6,665.17,0.97180801]
[1748950541553,0.26157743,665.6,665.44,0.97180801]
[1748950541754,1.75306798,665.6,665.44,0.97180801]
[1748950541947,0.26157743,665.6,665.44,0.97180801]
[1748950542353,0.26157743,665.6,665.45,0.97180801]
[1748950543048,0.26157743,665.6,665.46,1.27769761]
[1748950543249,0.26157743,665.6,665.47,1.27769761]
[1748950543451,0.26157743,665.6,665.48,1.27769761]
[1748950543649,0.26157743,665.6,665.49,1.27769761]
[1748950543852,0.26157743,665.6,665.5,1.27769761]
[1748950544051,0.26157743,665.6,665.51,1.27769761]
[1748950544253,0.26157743,665.6,665.52,1.27769761]
[1748950544452,0.26157743,665.6,665.53,1.27769761]
[1748950544656,1.75306798,665.6,665.54,1.27769761]
[1748950544955,0.26157743,665.6,665.53,0.97621866]
[1748950545456,0.03798002,665.6,665.54,0.97621866]
[1748950545759,1.49149055,665.61,665.54,0.97621866]
[1748950546256,1.49149055,665.61,665.55,0.97621866]
[1748950546850,1.49149055,665.6,665.17,1.39456797]
[1748950547050,1.49149055,665.6,665.18,1.27770249]
[1748950547255,1.49149055,665.6,665.19,1.27770249]
[1748950547456,1.49149055,665.6,665.2,1.27770249]
[1748950547649,1.49149055,665.6,665.21,1.27770249]
[1748950547850,1.49149055,665.6,665.22,1.27770249]
[1748950548054,1.339,665.67,665.0,1.12460421]
[1748950548055,1.49149055,665.59,665.23,1.27770249]
[1748950548250,1.49149055,665.59,665.24,1.27770249]
[1748950548453,1.49149055,665.6,665.25,1.27770249]
[1748950548652,1.49149055,665.6,665.52,0.97637794]
[1748950549148,0.26157055,665.59,665.51,0.97637794]
[1748950549355,0.26157055,665.59,665.26,0.97657107]
[1748950550257,0.26157055,665.59,665.27,0.97657107]
[1748950550755,0.26157055,665.59,664.94,1.12479451]
[1748950550756,0.26157055,665.59,665.28,0.97657107]
[1748950550957,0.26157055,665.59,665.29,0.97657107]
[1748950551260,0.26157055,665.59,665.3,0.97657107]
[1748950552552,0.26157055,665.59,665.26,0.97657107]
[1748950552756,0.12181591,665.59,665.26,0.97657107]
[1748950553056,1.49149055,665.64,665.26,0.97657107]
[1748950553255,1.49149055,665.64,665.27,0.97657107]
[1748950554253,1.231,665.63,665.27,0.97657107]
[1748950554656,1.231,665.63,665.29,0.97657107]
[1748950555052,1.231,665.63,665.13,0.97657107]
[1748950555554,1.231,665.63,665.14,0.97657107]
[1748950555956,0.26160496,665.51,665.14,0.97657107]
[1748950556355,0.26160496,665.51,665.15,0.97657107]
[1748950557155,0.26160496,665.51,665.16,0.97657107]
[1748950557857,0.26160496,665.51,665.14,0.97657107]
[1748950558658,0.26160496,665.51,665.16,0.97657107]
[1748950559059,0.26160496,665.51,665.44,0.97657107]
[1748950559463,0.26160496,665.51,665.05,0.97637794]
[1748950560257,0.26160496,665.51,665.03,0.97637794]
[1748950561757,0.26160496,665.51,665.46,0.97757092]
[1748950562156,0.26160496,665.51,664.93,1.12514303]
[1748950562157,0.26160496,665.51,665.48,0.97757092]
[1748950562956,0.26160496,665.51,665.36,0.97757092]
[1748950564964,0.26160496,665.51,665.37,0.97757092]
[1748950565264,0.26160496,665.51,665.1,0.97637794]
[1748950565459,0.26160496,665.51,665.14,0.97637794]
[1748950565663,0.26160496,665.51,665.13,0.97637794]
[1748950566262,0.26160496,665.51,665.12,0.97637794]
[1748950567866,0.26160496,665.51,665.15,0.97637794]
[1748950568567,0.878,665.5,665.13,0.97637794]
[1748950569664,1.057,665.49,665.13,0.97637794]
[1748950571060,1.057,665.49,665.12,0.97637794]
[1748950571762,1.057,665.49,665.19,0.97637794]
[1748950572067,1.057,665.49,664.9,1.12497765]
[1748950572068,1.057,665.49,665.22,0.97637794]
[1748950572467,1.057,665.49,665.24,0.97637794]
[1748950572668,0.91723253,665.49,665.47,0.97637794]
[1748950573170,0.878,665.5,665.48,0.95839109]
[1748950573470,0.878,665.5,665.49,0.95839109]
[1748950575269,0.878,665.5,665.49,1.93524301]
[1748950575463,0.65438377,665.5,665.49,1.93524301]
[1748950575868,0.26160496,665.51,665.49,1.93524301]
[1748950576169,0.26160496,665.51,665.5,0.95839109]
[1748950580069,0.838,665.56,665.5,0.95839109]
[1748950580270,0.838,665.56,665.22,0.97685192]
[1748950580271,0.838,665.56,665.51,0.95839109]
[1748950580573,0.838,665.56,665.52,0.95839109]
[1748950580769,0.838,665.56,665.53,0.95839109]
[1748950580970,0.838,665.56,665.54,0.95839109]
[1748950581171,0.838,665.56,664.94,1.12552086]
[1748950581172,0.838,665.56,665.55,0.95839109]
[1748950583582,1.0995617,665.56,665.55,0.95839109]
[1748950587484,1.0995617,665.56,665.06,0.97728398]
[1748950587683,1.0995617,665.56,665.07,0.95839109]
[1748950587885,1.0995617,665.56,665.08,0.95839109]
[1748950588083,1.0995617,665.56,665.09,0.95839109]
[1748950588281,1.0995617,665.56,665.1,1.93567507]
[1748950588484,1.0995617,665.56,665.11,0.95839109]
[1748950588684,1.0995617,665.56,665.12,0.95839109]
[1748950588884,1.0995617,665.56,665.13,0.95839109]
[1748950589179,1.0995617,665.56,665.14,0.95839109]
[1748950589385,1.0995617,665.56,665.15,0.95839109]
[1748950589586,1.0995617,665.56,665.16,0.95839109]
[1748950589786,1.0995617,665.56,665.17,0.95839109]
[1748950589984,1.0995617,665.56,665.18,0.95839109]
[1748950590181,0.2615617,665.56,665.19,0.95839109]
[1748950590382,0.2615617,665.56,665.2,0.95839109]
[1748950590583,0.2615617,665.56,665.21,0.95839109]
[1748950590787,0.2615617,665.56,665.22,0.95839109]
[1748950590988,0.2615617,665.56,665.04,0.97728398]
[1748950591282,0.2615617,665.56,665.05,0.95819646]
[1748950591482,0.2615617,665.56,665.06,0.95819646]
[1748950591689,0.2615617,665.56,665.07,0.95819646]
[1748950591888,0.2615617,665.56,665.08,0.95819646]
[1748950592082,0.2615617,665.56,665.09,0.95819646]
[1748950592285,0.2615617,665.56,665.1,0.95819646]
[1748950592488,0.2615617,665.56,665.11,0.95819646]
[1748950592684,0.2615617,665.56,665.12,0.95819646]
[1748950592887,0.12182465,665.56,665.13,0.95819646]
[1748950593084,1.12011423,665.63,665.14,0.95819646]
[1748950593284,1.12011423,665.63,665.15,0.95819646]
[1748950593490,1.12011423,665.63,665.16,0.95819646]
[1748950593789,1.12011423,665.63,665.17,0.95819646]
[1748950593988,1.12011423,665.63,665.18,0.95819646]
[1748950594185,2.245,665.62,665.58,0.97591188]
[1748950594391,2.245,665.62,665.59,0.63880002]
[1748950594685,2.245,665.62,665.6,0.63880002]
[1748950594885,2.245,665.62,665.61,0.63880002]
[1748950596193,2.50654008,665.62,665.61,0.63880002]
[1748950597089,3.62642146,665.62,665.61,0.63880002]
[1748950597297,2.50654008,665.62,665.61,0.63880002]
[1748950597595,2.50654008,665.62,665.61,1.59700078]
[1748950597794,1.06054008,665.62,665.61,1.59700078]
[1748950603198,2.18019042,665.62,665.61,0.63880002]
[1748950603799,1.06054008,665.62,665.61,0.63880002]
[1748950604103,2.1801515,665.62,665.61,0.63880002]
[1748950604599,1.06054008,665.62,665.61,0.63880002]
[1748950605003,2.18010755,665.62,665.61,0.63880002]
[1748950605603,0.83696006,665.62,665.61,0.63880002]
[1748950605900,1.95652753,665.62,665.61,1.59700014]
[1748950608103,0.83696006,665.62,665.61,1.59700014]
[1748950608303,1.95639293,665.62,665.61,1.59700014]
[1748950612506,0.83696006,665.62,665.61,1.59700014]
[1748950612905,0.69722295,665.62,665.61,1.59700014]
[1748950617509,0.69722295,665.62,665.61,2.57337808]
[1748950617909,0.69722295,665.62,665.61,1.59700014]
[1748950618410,0.69722295,665.62,665.61,2.57393985]
[1748950618616,0.69722295,665.62,665.61,1.59700014]
[1748950619016,0.69722295,665.62,665.61,2.87459992]
[1748950620718,0.69722295,665.62,665.61,1.59700014]
[1748950621218,0.26154008,665.62,665.61,1.59700014]
[1748950623421,0.26154008,665.62,665.61,0.63880002]
[1748950626616,0.26154008,665.62,665.61,1.5967559]
[1748950627422,0.26154008,665.62,665.61,2.57369017]
[1748950627622,0.26154008,665.62,665.61,1.5967559]
[1748950627820,1.11934469,665.83,665.61,1.5967559]
[1748950628021,0.26147916,665.69,665.62,1.5967559]
[1748950628317,1.11934469,665.83,665.63,1.5967559]
[1748950628516,1.11934469,665.83,665.59,0.97693427]
[1748950628517,0.2614772,665.69,665.64,1.5967559]
[1748950628722,1.11934469,665.83,665.65,1.5967559]
[1748950628919,1.11934469,665.82,665.66,1.5967559]
[1748950629119,0.26147523,665.69,665.67,1.5967559]
[1748950629317,2.23334469,665.84,665.68,0.63880002]
[1748950629520,1.11934469,665.83,665.69,0.63880002]
[1748950629721,2.23334469,665.84,665.7,0.63880002]
[1748950630025,1.114,665.84,665.71,0.63880002]
[1748950630325,2.2330091,665.84,665.72,0.63880002]
[1748950630519,2.2330091,665.84,665.73,0.63880002]
[1748950630718,2.2330091,665.84,665.74,0.63880002]
[1748950630919,0.26146639,665.82,665.75,0.63880002]
[1748950631122,0.26146639,665.82,665.76,0.63880002]
[1748950631318,0.26146639,665.82,665.77,0.63880002]
[1748950631523,0.26146639,665.82,665.78,0.63880002]
[1748950631723,0.26146639,665.82,665.79,0.63880002]
[1748950631924,0.26146639,665.82,665.8,0.63880002]
[1748950632120,0.26146639,665.82,665.81,0.63880002]
[1748950633026,0.12176505,665.82,665.81,0.63880002]
[1748950633226,2.2330091,665.84,665.81,0.63880002]
[1748950633426,1.114,665.84,665.13,1.12272672]
[1748950633629,1.114,665.84,665.83,0.97449158]
[1748950633927,1.114,665.84,665.83,1.59659262]
[1748950635829,1.262,665.88,665.83,1.59659262]
[1748950636024,1.262,665.88,665.84,1.59659262]
[1748950636224,1.262,665.88,665.85,1.59659262]
[1748950636424,1.52345068,665.88,665.86,1.59659262]
[1748950636623,1.52345068,665.88,665.87,1.59659262]
[1748950647435,3.01494123,665.88,665.87,1.59659262]
[1748950648036,1.52345068,665.88,665.87,1.59659262]
[1748950648431,3.01494123,665.88,665.87,1.59659262]
[1748950648632,1.52345068,665.88,665.87,1.59659262]
[1748950652937,1.3837371,665.88,665.87,1.59659262]
[1748950657533,0.26145068,665.88,665.87,1.59659262]
[1748950658437,0.26145068,665.88,665.87,0.63863705]
[1748950660335,1.75329121,665.88,665.87,0.63863705]
[1748950660535,0.26145068,665.88,665.87,0.63863705]
[1748950660735,1.75320336,665.88,665.87,0.63863705]
[1748950662235,0.26145068,665.88,665.87,0.63863705]
[1748950665841,0.03785854,665.88,665.87,0.63863705]
[1748950666044,1.49175268,665.93,665.87,0.63863705]
[1748950666244,1.49175268,665.93,665.88,0.63863705]
[1748950666442,1.49175268,665.93,665.72,0.57435627]
[1748950666443,1.49175268,665.93,665.89,0.63863705]
[1748950666743,1.263,666.03,665.9,0.63863705]
[1748950666744,2.23723582,666.01,665.9,0.63863705]
[1748950666944,2.23723582,666.01,665.99,0.97713298]
[1748950667137,2.23723582,666.01,666.0,0.63863705]
[1748950667742,2.23723582,666.02,666.0,0.16229165]
[1748950667941,1.263,666.03,665.82,0.97713298]
[1748950668139,2.23707033,665.98,665.82,0.97713298]
[1748950668338,2.23707033,665.98,664.74,1.49398753]
[1748950668339,2.23707033,665.93,665.57,0.97684565]
[1748950668539,1.11853583,665.63,665.58,0.95822181]
[1748950668739,1.11853583,665.63,665.59,0.95822181]
[1748950668938,0.26155187,665.62,665.6,0.95822181]
[1748950669139,0.26155187,665.62,665.61,0.95822181]
[1748950669744,0.26155187,665.62,665.61,1.93245688]
[1748950670045,0.26155187,665.62,665.61,0.95822181]
[1748950670245,0.26155187,665.62,665.61,1.93245764]
[1748950670445,0.26155187,665.62,665.61,0.95822181]
[1748950670645,1.38006484,665.62,665.61,0.95822181]
[1748950671942,0.26155187,665.62,665.61,0.95822181]
[1748950672146,1.38004326,665.62,665.61,0.95822181]
[1748950673045,1.24030343,665.62,665.61,0.95822181]
[1748950673247,1.11849139,665.62,665.61,0.95822181]
[1748950673442,1.49138111,665.76,665.61,0.95822181]
[1748950673643,1.11846459,665.62,665.14,0.97532261]
[1748950673842,1.11846459,665.61,665.15,1.93354115]
[1748950674047,1.11846459,665.61,665.16,0.95821854]
[1748950674247,1.11845843,665.61,665.17,0.95821854]
[1748950674446,1.11845843,665.62,665.18,0.95821854]
[1748950674747,1.11845843,665.62,665.19,0.95821854]
[1748950674948,1.11845843,665.62,665.2,0.95821854]
[1748950675249,1.11845843,665.62,665.21,0.95821854]
[1748950675446,1.11845843,665.61,665.22,0.95821854]
[1748950675646,1.11845843,665.6,665.39,0.97532261]
[1748950675845,1.11845843,665.6,665.4,0.95821854]
[1748950676046,1.11845843,665.6,665.41,0.95821854]
[1748950676248,0.26157252,665.56,665.42,0.95821854]
[1748950676448,0.26157252,665.56,665.43,0.95821854]
[1748950676644,0.26157252,665.56,665.44,0.95821854]
[1748950676842,0.26157252,665.56,665.45,0.95821854]
[1748950677043,0.26157252,665.56,665.46,0.95821854]
[1748950677347,0.26157252,665.56,665.47,0.95821854]
[1748950677541,0.26157252,665.56,665.48,0.95821854]
[1748950677851,0.26157252,665.56,665.49,0.95821854]
[1748950678047,0.26157252,665.56,665.15,0.9775247]
[1748950678048,0.26157252,665.56,665.5,0.95821854]
[1748950678248,0.26157252,665.56,665.51,0.95821854]
[1748950678548,0.26157252,665.56,665.52,0.95821854]
[1748950678741,0.26157252,665.56,665.53,0.95821854]
[1748950678942,0.26157252,665.56,665.54,0.95821854]
[1748950679145,0.26157252,665.56,665.55,0.95821854]
[1748950691160,0.26157252,665.56,665.55,1.93435589]
[1748950691461,0.26157252,665.56,665.55,0.95821854]
[1748950693058,0.12178679,665.56,665.18,0.9765565]
[1748950693259,1.11717758,665.46,665.19,0.95853865]
[1748950693461,1.11717758,665.47,665.2,0.95853865]
[1748950693660,1.11717758,665.46,665.21,0.95853865]
[1748950693858,1.11717758,665.45,665.22,0.95853865]
[1748950694063,1.11717758,665.46,665.23,0.95853865]
[1748950694263,1.11717758,665.46,665.24,0.95853865]
[1748950694457,1.11717758,665.46,665.25,0.95853865]
[1748950694762,1.11717758,665.46,665.26,0.95853865]
[1748950694958,1.11717758,665.46,665.27,0.95853865]
[1748950695158,1.11717758,665.49,665.28,0.95853865]
[1748950695463,1.11717758,665.5,665.29,0.95853865]
[1748950695762,1.11717758,665.5,665.3,0.95853865]
[1748950696164,0.26162561,665.46,665.3,0.95853865]
[1748950697165,0.26162561,665.46,665.31,0.95853865]
[1748950697358,0.03797983,665.46,665.31,0.95853865]
[1748950697562,1.531,665.69,665.14,0.9765565]
[1748950698967,1.11703057,665.5,665.18,0.9765565]
[1748950699765,1.48937409,665.66,665.18,0.9765565]
[1748950700469,1.48937409,665.61,665.51,0.9765565]
[1748950700771,0.26162955,665.55,665.52,0.95847932]
[1748950701867,0.26162955,665.55,665.53,0.95847932]
[1748950702064,0.26162955,665.55,665.54,0.95847932]
[1748950704767,0.26162955,665.55,665.44,0.97446104]
[1748950705071,1.11693589,665.46,665.44,0.97446104]
[1748950705370,1.11693589,665.47,665.45,0.97446104]
[1748950705769,1.11693589,665.48,665.26,0.97446104]
[1748950706269,1.11693589,665.49,665.24,0.97446104]
[1748950706666,0.26162955,665.55,665.24,0.97446104]
[1748950706667,2.56893589,665.48,665.24,0.97446104]
[1748950707166,2.56893589,665.48,665.23,0.97446104]
[1748950707366,2.56893589,665.48,664.61,1.12218372]
[1748950707367,1.452,665.48,665.22,0.97446104]
[1748950707673,1.11693589,665.47,665.35,0.97446104]
[1748950708173,2.56893589,665.48,665.35,0.97446104]
[1748950708873,1.452,665.48,665.35,0.97446104]
[1748950709075,1.11671109,665.47,665.35,0.97446104]
[1748950709270,2.56871109,665.48,665.35,0.97446104]
[1748950711971,2.56871109,665.48,665.34,0.97446104]
[1748950712876,2.56871109,665.48,665.35,0.97446104]
[1748950713177,2.4288478,665.48,665.35,0.97446104]
[1748950713477,1.11663954,665.47,664.85,0.97492737]
[1748950713678,1.11663954,665.46,664.86,0.9585703]
[1748950713872,1.11663954,665.46,664.87,0.9585703]
[1748950714177,0.26162955,665.55,664.88,0.9585703]
[1748950714178,1.11663954,665.47,664.88,0.9585703]
[1748950714372,1.11663954,665.47,664.89,0.9585703]
[1748950714570,1.11663954,665.46,665.05,0.97492737]
[1748950714772,1.11663954,665.45,665.06,0.9585703]
[1748950714972,1.11663954,665.45,665.07,0.9585703]
[1748950715177,1.063,665.44,665.08,0.9585703]
[1748950715379,1.063,665.44,665.09,0.9585703]
[1748950715579,1.11663954,665.43,665.1,0.9585703]
[1748950715876,1.11663954,665.42,665.11,0.9585703]
[1748950716075,1.11663954,665.42,665.12,0.9585703]
[1748950716278,1.11663954,665.42,665.13,0.9585703]
[1748950716476,1.11663954,665.42,665.14,0.9585703]
[1748950716677,1.11663954,665.42,665.15,0.9585703]
[1748950716977,1.11663954,665.42,665.41,0.97434939]
[1748950717174,1.116929,665.43,665.41,0.9585703]
[1748950717380,1.063,665.44,665.42,0.9585703]
[1748950717577,1.063,665.44,665.43,0.9585703]
[1748950724580,1.063,665.44,665.43,1.93568762]
[1748950724980,1.063,665.44,665.43,0.9585703]
[1748950727484,0.26162955,665.55,665.43,0.9585703]
[1748950727678,0.26162955,665.55,665.44,0.9585703]
[1748950727879,0.26162955,665.55,665.45,1.59761807]
[1748950728082,0.26162955,665.55,665.46,1.59761807]
[1748950728280,0.26162955,665.55,665.47,1.59761807]
[1748950728579,0.26162955,665.55,665.48,1.59761807]
[1748950728780,0.26162955,665.55,665.49,1.59761807]
[1748950729081,0.26162955,665.55,664.53,1.49632132]
[1748950729082,0.26162955,665.55,665.5,1.59761807]
[1748950729282,0.26162955,665.55,665.51,1.59761807]
[1748950729487,0.26162955,665.55,665.52,1.59761807]
[1748950729681,0.26162955,665.55,665.53,1.59761807]
[1748950729884,0.26162955,665.55,665.54,1.59761807]
[1748950733191,0.12183806,665.55,665.54,1.59761807]
[1748950733391,1.48947629,665.57,665.54,1.59761807]
[1748950733591,1.48947629,665.57,665.55,1.59761807]
[1748950733792,1.48947629,665.57,665.56,1.59761807]
[1748950734791,2.23421443,665.68,665.56,1.59761807]
[1748950735095,1.272,665.93,665.57,1.59761807]
[1748950735096,2.23421443,665.7,665.57,1.59761807]
[1748950735295,2.23421443,665.69,665.58,1.59761807]
[1748950735496,2.23421443,665.69,665.59,1.59761807]
[1748950735696,2.23421443,665.69,665.6,1.59761807]
[1748950735892,2.23421443,665.69,665.66,0.97803691]
[1748950736094,2.23421443,665.69,665.67,1.59761807]
[1748950736296,2.23421443,665.69,665.68,1.59761807]
[1748950736495,2.49580956,665.69,665.68,1.59761807]
[1748950736697,0.26159513,665.69,665.68,1.59761807]
[1748950737601,2.4969765,665.69,665.68,1.59761807]
[1748950737803,0.26159513,665.69,665.68,1.59761807]